[Event "Titled Tuesday Blitz January 17 Early 2023"]
[White "Kalajzic, Ivan"]
[Black "Balabayeva, Xeniya"]
[WhiteFideId "14506378"]
[BlackFideId "13719688"]
[WhiteElo "2062"]
[BlackElo "2191"]
[Result "0-1"]
[Round "05"]
[TimeControl "180+2"]
[Date "2023.01.17"]
[WhiteClock "0:00:01"]
[BlackClock "0:00:19"]

1. d4 {[%clk 0:02:57]}  d5 {[%clk 0:02:59]} 2. Nc3 {[%clk 0:02:57]}  Nf6 {[%clk 0:02:59]} 3. Bg5 {[%clk 0:02:56]}  Bf5 {[%clk 0:02:55]} 4. f3 {[%clk 0:02:56]}  c6 {[%clk 0:02:49]} 5. g4 {[%clk 0:02:51]}  Bg6 {[%clk 0:02:47]} 6. h4 {[%clk 0:02:51]}  h5 {[%clk 0:02:41]} 7. Bh3 {[%clk 0:02:28]}  e6 {[%clk 0:02:39]} 8. Qd2 {[%clk 0:02:22]}  Be7 {[%clk 0:02:36]} 9. O-O-O {[%clk 0:02:20]}  Nbd7 {[%clk 0:02:27]} 10. e3 {[%clk 0:02:20]}  Nb6 {[%clk 0:02:25]} 11. gxh5 {[%clk 0:02:02]}  Bxh5 {[%clk 0:01:57]} 12. Bf1 {[%clk 0:01:36]}  a5 {[%clk 0:01:40]} 13. Bd3 {[%clk 0:01:26]}  Nbd7 {[%clk 0:01:17]} 14. Rf1 {[%clk 0:01:23]}  b5 {[%clk 0:01:13]} 15. Nge2 {[%clk 0:01:22]}  a4 {[%clk 0:01:10]} 16. Nf4 {[%clk 0:01:21]}  a3 {[%clk 0:01:06]} 17. Nxh5 {[%clk 0:01:15]}  Rxh5 {[%clk 0:01:04]} 18. e4 {[%clk 0:01:07]}  axb2+ {[%clk 0:01:02]} 19. Kb1 {[%clk 0:01:07]}  Qa5 {[%clk 0:00:57]} 20. Kxb2 {[%clk 0:00:21]}  Qa3+ {[%clk 0:00:42]} 21. Kb1 {[%clk 0:00:20]}  Bb4 {[%clk 0:00:41]} 22. Qc1 {[%clk 0:00:09]}  Qxc3 {[%clk 0:00:34]} 23. Qb2 {[%clk 0:00:09]}  Nb6 {[%clk 0:00:26]} 24. Qxc3 {[%clk 0:00:07]}  Bxc3 {[%clk 0:00:26]} 25. Bc1 {[%clk 0:00:05]}  Bxd4 {[%clk 0:00:25]} 26. exd5 {[%clk 0:00:03]}  Nbxd5 {[%clk 0:00:22]} 27. Bb2 {[%clk 0:00:04]}  Bxb2 {[%clk 0:00:22]} 28. Kxb2 {[%clk 0:00:04]}  Nb4 {[%clk 0:00:21]} 29. Rhg1 {[%clk 0:00:04]}  Nxd3+ {[%clk 0:00:21]} 30. cxd3 {[%clk 0:00:04]}  g6 {[%clk 0:00:21]} 31. Rg5 {[%clk 0:00:03]}  Rxh4 {[%clk 0:00:20]} 32. Rc5 {[%clk 0:00:03]}  Kd7 {[%clk 0:00:20]} 33. Rfc1 {[%clk 0:00:01]}  Ra6 {[%clk 0:00:19]} 0-1


[Site "https://www.chess.com"]

[Event "Titled Tuesday Blitz January 17 Early 2023"]
[White "Musovic, Armin"]
[Black "Mrudul Dehankar"]
[WhiteFideId "939935"]
[BlackFideId "25096990"]
[WhiteElo "2261"]
[BlackElo "2030"]
[Result "1-0"]
[Round "05"]
[TimeControl "180+2"]
[Date "2023.01.17"]
[WhiteClock "0:01:07"]
[BlackClock "0:00:01"]

1. a3 {[%clk 0:03:00]}  g6 {[%clk 0:02:54]} 2. Nc3 {[%clk 0:03:00]}  Bg7 {[%clk 0:02:55]} 3. e4 {[%clk 0:03:01]}  c6 {[%clk 0:02:53]} 4. Bc4 {[%clk 0:03:01]}  d6 {[%clk 0:02:41]} 5. d3 {[%clk 0:02:55]}  Nf6 {[%clk 0:02:38]} 6. Nge2 {[%clk 0:02:55]}  O-O {[%clk 0:02:36]} 7. O-O {[%clk 0:02:55]}  b5 {[%clk 0:02:36]} 8. Ba2 {[%clk 0:02:55]}  a5 {[%clk 0:02:36]} 9. h3 {[%clk 0:02:53]}  b4 {[%clk 0:02:34]} 10. axb4 {[%clk 0:02:52]}  axb4 {[%clk 0:02:34]} 11. Bxf7+ {[%clk 0:02:52]}  Kxf7 {[%clk 0:02:22]} 12. Rxa8 {[%clk 0:02:53]}  Bb7 {[%clk 0:02:19]} 13. Ra7 {[%clk 0:02:37]}  Qb6 {[%clk 0:02:18]} 14. Be3 {[%clk 0:02:37]}  c5 {[%clk 0:02:18]} 15. Ra1 {[%clk 0:02:20]}  bxc3 {[%clk 0:02:17]} 16. bxc3 {[%clk 0:02:21]}  Nbd7 {[%clk 0:02:11]} 17. Qb1 {[%clk 0:02:15]}  Qxb1 {[%clk 0:01:40]} 18. Rfxb1 {[%clk 0:02:15]}  Rb8 {[%clk 0:01:40]} 19. Ra7 {[%clk 0:02:04]}  Bc6 {[%clk 0:01:33]} 20. Rxb8 {[%clk 0:02:05]}  Nxb8 {[%clk 0:01:33]} 21. f3 {[%clk 0:02:03]}  Nfd7 {[%clk 0:01:23]} 22. Kf2 {[%clk 0:01:57]}  Ke8 {[%clk 0:00:57]} 23. d4 {[%clk 0:01:55]}  Kd8 {[%clk 0:00:47]} 24. Nf4 {[%clk 0:01:54]}  Bf6 {[%clk 0:00:20]} 25. Ne6+ {[%clk 0:01:41]}  Ke8 {[%clk 0:00:20]} 26. d5 {[%clk 0:01:33]}  Bb5 {[%clk 0:00:20]} 27. Nc7+ {[%clk 0:01:33]}  Kd8 {[%clk 0:00:15]} 28. Nxb5 {[%clk 0:01:34]}  Nb6 {[%clk 0:00:14]} 29. Na3 {[%clk 0:01:23]}  N8d7 {[%clk 0:00:15]} 30. Bd2 {[%clk 0:01:16]}  Kc8 {[%clk 0:00:14]} 31. f4 {[%clk 0:01:12]}  Kb8 {[%clk 0:00:14]} 32. Ra5 {[%clk 0:01:13]}  Kb7 {[%clk 0:00:12]} 33. g4 {[%clk 0:01:12]}  Bg7 {[%clk 0:00:10]} 34. Ke2 {[%clk 0:01:13]}  Nb8 {[%clk 0:00:09]} 35. Kd3 {[%clk 0:01:13]}  N8d7 {[%clk 0:00:06]} 36. c4 {[%clk 0:01:12]}  Bh6 {[%clk 0:00:04]} 37. Nb5 {[%clk 0:01:12]}  Bg7 {[%clk 0:00:02]} 38. Ra7+ {[%clk 0:01:11]}  Kb8 {[%clk 0:00:03]} 39. Ba5 {[%clk 0:01:12]}  Bf6 {[%clk 0:00:01]} 40. Bxb6 {[%clk 0:01:09]}  Nxb6 {[%clk 0:00:01]} 41. g5 {[%clk 0:01:10]}  Nc8 {[%clk 0:00:01]} 42. gxf6 {[%clk 0:01:08]}  Nxa7 {[%clk 0:00:01]} 43. fxe7 {[%clk 0:01:07]} 1-0


[Site "https://www.chess.com"]

[Event "Titled Tuesday Blitz January 17 Early 2023"]
[White "Alfaro, William"]
[Black "Biastoch, Bennet"]
[WhiteFideId "6100457"]
[BlackFideId "12939889"]
[WhiteElo "2134"]
[BlackElo "2257"]
[Result "1/2-1/2"]
[Round "05"]
[TimeControl "180+2"]
[Date "2023.01.17"]
[WhiteClock "0:00:10"]
[BlackClock "0:00:34"]

1. Nf3 {[%clk 0:03:00]}  d5 {[%clk 0:02:58]} 2. g3 {[%clk 0:03:00]}  g6 {[%clk 0:02:54]} 3. Bg2 {[%clk 0:03:01]}  Bg7 {[%clk 0:02:54]} 4. O-O {[%clk 0:03:01]}  e5 {[%clk 0:02:53]} 5. d3 {[%clk 0:03:02]}  Ne7 {[%clk 0:02:52]} 6. e4 {[%clk 0:03:02]}  O-O {[%clk 0:02:50]} 7. Nbd2 {[%clk 0:02:59]}  c6 {[%clk 0:02:50]} 8. Re1 {[%clk 0:02:58]}  Bg4 {[%clk 0:02:46]} 9. h3 {[%clk 0:02:53]}  Bxf3 {[%clk 0:02:46]} 10. Nxf3 {[%clk 0:02:54]}  Nd7 {[%clk 0:02:45]} 11. Bg5 {[%clk 0:02:51]}  h6 {[%clk 0:02:43]} 12. Bd2 {[%clk 0:02:50]}  Kh7 {[%clk 0:02:43]} 13. Qe2 {[%clk 0:02:49]}  d4 {[%clk 0:02:37]} 14. Nh4 {[%clk 0:02:49]}  Bf6 {[%clk 0:02:29]} 15. Nf3 {[%clk 0:02:43]}  c5 {[%clk 0:02:29]} 16. c4 {[%clk 0:02:42]}  Rb8 {[%clk 0:02:27]} 17. Nh2 {[%clk 0:02:42]}  b5 {[%clk 0:02:25]} 18. b3 {[%clk 0:02:41]}  bxc4 {[%clk 0:02:24]} 19. dxc4 {[%clk 0:02:41]}  Nc6 {[%clk 0:02:20]} 20. Rad1 {[%clk 0:02:40]}  Bg5 {[%clk 0:02:05]} 21. f4 {[%clk 0:02:40]}  exf4 {[%clk 0:02:05]} 22. gxf4 {[%clk 0:02:40]}  Bh4 {[%clk 0:02:06]} 23. Rf1 {[%clk 0:02:40]}  f5 {[%clk 0:02:06]} 24. e5 {[%clk 0:02:37]}  Ne7 {[%clk 0:02:06]} 25. Nf3 {[%clk 0:02:34]}  Ng8 {[%clk 0:01:58]} 26. Nh2 {[%clk 0:02:32]}  Rb6 {[%clk 0:01:56]} 27. Bd5 {[%clk 0:02:31]}  Ne7 {[%clk 0:01:46]} 28. Ba5 {[%clk 0:02:25]}  Qe8 {[%clk 0:01:35]} 29. Bxb6 {[%clk 0:02:21]}  Nxb6 {[%clk 0:01:36]} 30. Bg2 {[%clk 0:02:15]}  Nc6 {[%clk 0:01:24]} 31. Qf3 {[%clk 0:02:08]}  Nd8 {[%clk 0:01:24]} 32. b4 {[%clk 0:02:00]}  Qe7 {[%clk 0:01:20]} 33. bxc5 {[%clk 0:01:56]}  Qxc5 {[%clk 0:01:21]} 34. Qd3 {[%clk 0:01:55]}  Ne6 {[%clk 0:01:20]} 35. Nf3 {[%clk 0:01:40]}  Be7 {[%clk 0:01:20]} 36. Nd2 {[%clk 0:01:33]}  Rd8 {[%clk 0:01:14]} 37. Kh1 {[%clk 0:01:18]}  Qc7 {[%clk 0:01:12]} 38. Rc1 {[%clk 0:01:07]}  Nc5 {[%clk 0:01:11]} 39. Qg3 {[%clk 0:01:02]}  Rg8 {[%clk 0:00:58]} 40. Nb3 {[%clk 0:01:01]}  Qd8 {[%clk 0:00:57]} 41. Rfd1 {[%clk 0:00:57]}  Ne6 {[%clk 0:00:57]} 42. c5 {[%clk 0:00:52]}  Nd5 {[%clk 0:00:52]} 43. c6 {[%clk 0:00:49]}  Ndxf4 {[%clk 0:00:47]} 44. c7 {[%clk 0:00:47]}  Qc8 {[%clk 0:00:43]} 45. Nxd4 {[%clk 0:00:46]}  Nxd4 {[%clk 0:00:43]} 46. Qxf4 {[%clk 0:00:38]}  Ne2 {[%clk 0:00:43]} 47. Qc4 {[%clk 0:00:32]}  Nxc1 {[%clk 0:00:40]} 48. Rxc1 {[%clk 0:00:32]}  Bg5 {[%clk 0:00:32]} 49. Rd1 {[%clk 0:00:29]}  Rg7 {[%clk 0:00:25]} 50. e6 {[%clk 0:00:26]}  Qxc7 {[%clk 0:00:24]} 51. Qxc7 {[%clk 0:00:25]}  Rxc7 {[%clk 0:00:25]} 52. Rd7+ {[%clk 0:00:20]}  Rxd7 {[%clk 0:00:26]} 53. exd7 {[%clk 0:00:21]}  Kg7 {[%clk 0:00:26]} 54. Bd5 {[%clk 0:00:21]}  Be7 {[%clk 0:00:26]} 55. Kg2 {[%clk 0:00:21]}  Kf6 {[%clk 0:00:27]} 56. Kf3 {[%clk 0:00:21]}  Ke5 {[%clk 0:00:27]} 57. Bf7 {[%clk 0:00:21]}  g5 {[%clk 0:00:27]} 58. Bb3 {[%clk 0:00:18]}  Kd6 {[%clk 0:00:27]} 59. Ba4 {[%clk 0:00:18]}  h5 {[%clk 0:00:27]} 60. Bb5 {[%clk 0:00:17]}  Kc7 {[%clk 0:00:28]} 61. Ba4 {[%clk 0:00:17]}  Bd6 {[%clk 0:00:28]} 62. Bc2 {[%clk 0:00:15]}  g4+ {[%clk 0:00:28]} 63. hxg4 {[%clk 0:00:15]}  fxg4+ {[%clk 0:00:27]} 64. Kg2 {[%clk 0:00:13]}  h4 {[%clk 0:00:27]} 65. Bf5 {[%clk 0:00:14]}  g3 {[%clk 0:00:26]} 66. Kh3 {[%clk 0:00:14]}  Be7 {[%clk 0:00:27]} 67. Bg4 {[%clk 0:00:13]}  Kd6 {[%clk 0:00:28]} 68. Bf5 {[%clk 0:00:13]}  Ke5 {[%clk 0:00:28]} 69. Bg4 {[%clk 0:00:14]}  Kf4 {[%clk 0:00:28]} 70. Be6 {[%clk 0:00:14]}  Kf3 {[%clk 0:00:28]} 71. Bd5+ {[%clk 0:00:12]}  Kf2 {[%clk 0:00:29]} 72. Bb7 {[%clk 0:00:12]}  Bd8 {[%clk 0:00:29]} 73. Bc6 {[%clk 0:00:13]}  a5 {[%clk 0:00:29]} 74. Bd5 {[%clk 0:00:13]}  a4 {[%clk 0:00:29]} 75. Bc6 {[%clk 0:00:13]}  a3 {[%clk 0:00:29]} 76. Bd5 {[%clk 0:00:14]}  Ke2 {[%clk 0:00:29]} 77. Bc6 {[%clk 0:00:14]}  Kd3 {[%clk 0:00:30]} 78. Bd5 {[%clk 0:00:14]}  Kd4 {[%clk 0:00:30]} 79. Bb3 {[%clk 0:00:14]}  Kc5 {[%clk 0:00:31]} 80. Be6 {[%clk 0:00:14]}  Kd6 {[%clk 0:00:31]} 81. Bg4 {[%clk 0:00:15]}  Ke5 {[%clk 0:00:32]} 82. Bd1 {[%clk 0:00:13]}  Ke6 {[%clk 0:00:32]} 83. Bg4+ {[%clk 0:00:13]}  Kd5 {[%clk 0:00:32]} 84. Bd1 {[%clk 0:00:13]}  Kc6 {[%clk 0:00:33]} 85. Bg4 {[%clk 0:00:13]}  Kc5 {[%clk 0:00:33]} 86. Bd1 {[%clk 0:00:13]}  Kb4 {[%clk 0:00:34]} 87. Bb3 {[%clk 0:00:12]}  Kc3 {[%clk 0:00:35]} 88. Kg2 {[%clk 0:00:13]}  Kd4 {[%clk 0:00:34]} 89. Be6 {[%clk 0:00:13]}  Ke5 {[%clk 0:00:34]} 90. Bb3 {[%clk 0:00:14]}  Kf5 {[%clk 0:00:34]} 91. Bd1 {[%clk 0:00:13]}  Kg5 {[%clk 0:00:34]} 92. Bb3 {[%clk 0:00:12]}  Bc7 {[%clk 0:00:35]} 93. Bd1 {[%clk 0:00:11]}  Kf5 {[%clk 0:00:34]} 94. Bb3 {[%clk 0:00:11]}  Bd8 {[%clk 0:00:34]} 95. Bd1 {[%clk 0:00:11]}  Ke6 {[%clk 0:00:35]} 96. Bg4+ {[%clk 0:00:11]}  Kd6 {[%clk 0:00:35]} 97. Bf5 {[%clk 0:00:10]}  Kd5 {[%clk 0:00:35]} 98. Bg4 {[%clk 0:00:11]}  Kd4 {[%clk 0:00:35]} 99. Bf5 {[%clk 0:00:11]}  Kc4 {[%clk 0:00:35]} 100. Be6+ {[%clk 0:00:11]}  Kc3 {[%clk 0:00:36]} 101. Bb3 {[%clk 0:00:11]}  Kd2 {[%clk 0:00:35]} 102. Be6 {[%clk 0:00:11]}  Ke2 {[%clk 0:00:35]} 103. Bc4+ {[%clk 0:00:11]}  Ke3 {[%clk 0:00:35]} 104. Be6 {[%clk 0:00:11]}  Kf4 {[%clk 0:00:34]} 105. Bb3 {[%clk 0:00:11]}  h3+ {[%clk 0:00:33]} 106. Kxh3 {[%clk 0:00:11]}  Kf3 {[%clk 0:00:34]} 107. Bd5+ {[%clk 0:00:11]}  Kf2 {[%clk 0:00:34]} 108. Bg2 {[%clk 0:00:11]}  Be7 {[%clk 0:00:34]} 109. Bd5 {[%clk 0:00:10]} 1/2-1/2


[Site "https://www.chess.com"]

[Event "Titled Tuesday Blitz January 17 Early 2023"]
[White "Kiseleva, Arina"]
[Black "Womacka, Mathias"]
[WhiteFideId "4164989"]
[BlackFideId "4611390"]
[WhiteElo "1962"]
[BlackElo "2396"]
[Result "0-1"]
[Round "05"]
[TimeControl "180+2"]
[Date "2023.01.17"]
[WhiteClock "0:00:01"]
[BlackClock "0:00:13"]

1. d4 {[%clk 0:03:00]}  Nf6 {[%clk 0:02:57]} 2. Nf3 {[%clk 0:03:00]}  e6 {[%clk 0:02:57]} 3. e3 {[%clk 0:03:00]}  c5 {[%clk 0:02:55]} 4. Bd3 {[%clk 0:02:59]}  d5 {[%clk 0:02:55]} 5. O-O {[%clk 0:02:58]}  Nc6 {[%clk 0:02:55]} 6. b3 {[%clk 0:02:58]}  cxd4 {[%clk 0:02:50]} 7. exd4 {[%clk 0:02:52]}  Be7 {[%clk 0:02:51]} 8. Bb2 {[%clk 0:02:52]}  O-O {[%clk 0:02:51]} 9. a3 {[%clk 0:02:51]}  b6 {[%clk 0:02:51]} 10. Qe2 {[%clk 0:02:42]}  Bb7 {[%clk 0:02:50]} 11. Nbd2 {[%clk 0:02:38]}  Qc7 {[%clk 0:02:45]} 12. Ne5 {[%clk 0:02:35]}  Rac8 {[%clk 0:02:25]} 13. f4 {[%clk 0:02:26]}  Bd6 {[%clk 0:01:46]} 14. Rf3 {[%clk 0:02:13]}  Ne7 {[%clk 0:01:45]} 15. Rh3 {[%clk 0:01:57]}  g6 {[%clk 0:01:44]} 16. Re1 {[%clk 0:01:40]}  Ne4 {[%clk 0:01:39]} 17. Bxe4 {[%clk 0:01:18]}  dxe4 {[%clk 0:01:36]} 18. c4 {[%clk 0:01:15]}  f6 {[%clk 0:01:32]} 19. Ng4 {[%clk 0:01:10]}  Bxf4 {[%clk 0:01:29]} 20. Nxe4 {[%clk 0:00:52]}  Bxe4 {[%clk 0:00:47]} 21. Qxe4 {[%clk 0:00:52]}  e5 {[%clk 0:00:44]} 22. dxe5 {[%clk 0:00:43]}  f5 {[%clk 0:00:19]} 23. Qxf4 {[%clk 0:00:40]}  fxg4 {[%clk 0:00:20]} 24. Qxg4 {[%clk 0:00:41]}  Nf5 {[%clk 0:00:19]} 25. e6 {[%clk 0:00:40]}  Qc5+ {[%clk 0:00:18]} 26. Kh1 {[%clk 0:00:38]}  Qf2 {[%clk 0:00:18]} 27. Bc3 {[%clk 0:00:12]}  Ne3 {[%clk 0:00:16]} 28. Rf3 {[%clk 0:00:02]}  Nxg4 {[%clk 0:00:13]} 29. Rxf2 {[%clk 0:00:01]}  Nxf2+ {[%clk 0:00:14]} 30. Kg1 {[%clk 0:00:01]}  Nd3 {[%clk 0:00:13]} 0-1


[Site "https://www.chess.com"]

[Event "Titled Tuesday Blitz January 17 Early 2023"]
[White "Tokhirjonova, Gulrukhbegim"]
[Black "Rodrigues, Leonardo De Miranda"]
[WhiteFideId "14203626"]
[BlackFideId "2108658"]
[WhiteElo "2340"]
[BlackElo "2112"]
[Result "1-0"]
[Round "05"]
[TimeControl "180+2"]
[Date "2023.01.17"]
[WhiteClock "0:00:13"]
[BlackClock "0:00:13"]

1. e4 {[%clk 0:02:54]}  c6 {[%clk 0:02:58]} 2. d4 {[%clk 0:02:53]}  d5 {[%clk 0:02:58]} 3. e5 {[%clk 0:02:53]}  Bf5 {[%clk 0:02:56]} 4. Nf3 {[%clk 0:02:49]}  e6 {[%clk 0:02:55]} 5. Be2 {[%clk 0:02:47]}  Nd7 {[%clk 0:02:53]} 6. O-O {[%clk 0:02:47]}  Ne7 {[%clk 0:02:54]} 7. Nbd2 {[%clk 0:02:47]}  h6 {[%clk 0:02:53]} 8. Nb3 {[%clk 0:02:48]}  Bh7 {[%clk 0:02:50]} 9. a4 {[%clk 0:02:47]}  Nf5 {[%clk 0:02:43]} 10. a5 {[%clk 0:02:47]}  c5 {[%clk 0:02:37]} 11. dxc5 {[%clk 0:02:47]}  Bxc5 {[%clk 0:02:35]} 12. Bb5 {[%clk 0:02:47]}  Be7 {[%clk 0:02:30]} 13. a6 {[%clk 0:02:42]}  bxa6 {[%clk 0:02:24]} 14. Rxa6 {[%clk 0:02:35]}  O-O {[%clk 0:02:17]} 15. c4 {[%clk 0:02:29]}  Nb8 {[%clk 0:02:08]} 16. Ra1 {[%clk 0:02:22]}  dxc4 {[%clk 0:02:02]} 17. Bxc4 {[%clk 0:02:17]}  Qxd1 {[%clk 0:01:56]} 18. Rxd1 {[%clk 0:02:15]}  Nc6 {[%clk 0:01:55]} 19. Rd7 {[%clk 0:01:51]}  Bb4 {[%clk 0:01:52]} 20. Bb5 {[%clk 0:01:37]}  Nce7 {[%clk 0:01:23]} 21. g4 {[%clk 0:01:36]}  a6 {[%clk 0:01:15]} 22. Bf1 {[%clk 0:01:32]}  Rfd8 {[%clk 0:00:51]} 23. Rxd8+ {[%clk 0:01:32]}  Rxd8 {[%clk 0:00:50]} 24. gxf5 {[%clk 0:01:32]}  Bxf5 {[%clk 0:00:42]} 25. Bd2 {[%clk 0:01:33]}  Nd5 {[%clk 0:00:31]} 26. Rxa6 {[%clk 0:01:29]}  Be4 {[%clk 0:00:27]} 27. Nfd4 {[%clk 0:01:04]}  Bxd2 {[%clk 0:00:26]} 28. Nxd2 {[%clk 0:01:05]}  Nf4 {[%clk 0:00:26]} 29. Nxe4 {[%clk 0:01:04]}  Rxd4 {[%clk 0:00:25]} 30. Nc3 {[%clk 0:01:04]}  Rd2 {[%clk 0:00:23]} 31. b4 {[%clk 0:00:59]}  Rc2 {[%clk 0:00:21]} 32. Rc6 {[%clk 0:00:59]}  Rc1 {[%clk 0:00:20]} 33. b5 {[%clk 0:00:48]}  g5 {[%clk 0:00:18]} 34. f3 {[%clk 0:00:47]}  h5 {[%clk 0:00:17]} 35. Kf2 {[%clk 0:00:45]}  Rc2+ {[%clk 0:00:16]} 36. Ne2 {[%clk 0:00:41]}  Rb2 {[%clk 0:00:14]} 37. b6 {[%clk 0:00:36]}  Nd3+ {[%clk 0:00:13]} 38. Ke3 {[%clk 0:00:33]}  Nxe5 {[%clk 0:00:13]} 39. Rc8+ {[%clk 0:00:28]}  Kg7 {[%clk 0:00:14]} 40. Rb8 {[%clk 0:00:28]}  f5 {[%clk 0:00:13]} 41. Nd4 {[%clk 0:00:20]}  f4+ {[%clk 0:00:13]} 42. Ke4 {[%clk 0:00:21]}  Kf6 {[%clk 0:00:10]} 43. b7 {[%clk 0:00:16]}  Nd7 {[%clk 0:00:06]} 44. Rc8 {[%clk 0:00:09]}  Rxb7 {[%clk 0:00:06]} 45. Rc6 {[%clk 0:00:09]}  Ke7 {[%clk 0:00:06]} 46. Rxe6+ {[%clk 0:00:09]}  Kd8 {[%clk 0:00:06]} 47. Rh6 {[%clk 0:00:09]}  Ne5 {[%clk 0:00:05]} 48. Kxe5 {[%clk 0:00:09]}  Re7+ {[%clk 0:00:05]} 49. Ne6+ {[%clk 0:00:09]}  Kd7 {[%clk 0:00:05]} 50. Kf5 {[%clk 0:00:10]}  Rg7 {[%clk 0:00:04]} 51. Nxg7 {[%clk 0:00:09]}  Ke7 {[%clk 0:00:05]} 52. Nxh5 {[%clk 0:00:10]}  Kf7 {[%clk 0:00:06]} 53. Kxg5 {[%clk 0:00:10]}  Ke8 {[%clk 0:00:05]} 54. Kxf4 {[%clk 0:00:11]}  Kf7 {[%clk 0:00:05]} 55. Bc4+ {[%clk 0:00:12]}  Ke7 {[%clk 0:00:06]} 56. Re6+ {[%clk 0:00:11]}  Kd7 {[%clk 0:00:07]} 57. Nf6+ {[%clk 0:00:12]}  Kd8 {[%clk 0:00:07]} 58. Ra6 {[%clk 0:00:10]}  Kc7 {[%clk 0:00:08]} 59. Be6 {[%clk 0:00:10]}  Kb7 {[%clk 0:00:08]} 60. Rd6 {[%clk 0:00:10]}  Kc7 {[%clk 0:00:09]} 61. Ke5 {[%clk 0:00:11]}  Kb7 {[%clk 0:00:08]} 62. h4 {[%clk 0:00:11]}  Kc7 {[%clk 0:00:09]} 63. h5 {[%clk 0:00:12]}  Kb7 {[%clk 0:00:10]} 64. h6 {[%clk 0:00:12]}  Kc7 {[%clk 0:00:11]} 65. h7 {[%clk 0:00:12]}  Kb7 {[%clk 0:00:12]} 66. h8=Q {[%clk 0:00:13]}  Kc7 {[%clk 0:00:13]} 67. Qc8# {[%clk 0:00:13]} 1-0


[Site "https://www.chess.com"]

[Event "Titled Tuesday Blitz January 17 Early 2023"]
[White "Ruiz Castillo, Joshua Daniel"]
[Black "Jiganchine, Roman"]
[WhiteFideId "4400704"]
[BlackFideId "2603667"]
[WhiteElo "2459"]
[BlackElo "2205"]
[Result "1/2-1/2"]
[Round "05"]
[TimeControl "180+2"]
[Date "2023.01.17"]
[WhiteClock "0:00:30"]
[BlackClock "0:00:22"]

1. d4 {[%clk 0:02:43]}  d5 {[%clk 0:02:59]} 2. Nf3 {[%clk 0:02:43]}  Nf6 {[%clk 0:02:59]} 3. Bf4 {[%clk 0:02:42]}  c5 {[%clk 0:02:53]} 4. e3 {[%clk 0:02:39]}  e6 {[%clk 0:02:53]} 5. Nbd2 {[%clk 0:02:37]}  Nc6 {[%clk 0:02:53]} 6. c3 {[%clk 0:02:36]}  Bd6 {[%clk 0:02:53]} 7. Bg3 {[%clk 0:02:16]}  O-O {[%clk 0:02:52]} 8. Bd3 {[%clk 0:02:08]}  Qe7 {[%clk 0:02:51]} 9. Ne5 {[%clk 0:02:09]}  Nd7 {[%clk 0:02:50]} 10. Nxd7 {[%clk 0:02:08]}  Qxd7 {[%clk 0:02:50]} 11. Bxd6 {[%clk 0:02:06]}  Qxd6 {[%clk 0:02:48]} 12. dxc5 {[%clk 0:02:07]}  Qxc5 {[%clk 0:02:46]} 13. O-O {[%clk 0:02:07]}  g6 {[%clk 0:02:42]} 14. e4 {[%clk 0:02:06]}  Qb6 {[%clk 0:02:10]} 15. exd5 {[%clk 0:01:53]}  exd5 {[%clk 0:02:10]} 16. Rb1 {[%clk 0:01:49]}  Ne5 {[%clk 0:02:09]} 17. Bc2 {[%clk 0:01:44]}  Be6 {[%clk 0:02:03]} 18. h3 {[%clk 0:01:43]}  Rac8 {[%clk 0:02:02]} 19. Nf3 {[%clk 0:01:43]}  Nc4 {[%clk 0:01:59]} 20. Qc1 {[%clk 0:01:36]}  Qd6 {[%clk 0:01:49]} 21. Nd4 {[%clk 0:01:35]}  Rfe8 {[%clk 0:01:38]} 22. Re1 {[%clk 0:01:29]}  a6 {[%clk 0:01:34]} 23. Bd3 {[%clk 0:01:24]}  Ne5 {[%clk 0:01:29]} 24. Qf4 {[%clk 0:01:24]}  Nc4 {[%clk 0:01:25]} 25. Qxd6 {[%clk 0:01:23]}  Nxd6 {[%clk 0:01:25]} 26. Re5 {[%clk 0:01:22]}  Nc4 {[%clk 0:01:16]} 27. Bxc4 {[%clk 0:01:22]}  dxc4 {[%clk 0:01:11]} 28. Rbe1 {[%clk 0:01:22]}  Bd7 {[%clk 0:01:08]} 29. Rxe8+ {[%clk 0:01:22]}  Rxe8 {[%clk 0:01:07]} 30. Rxe8+ {[%clk 0:01:22]}  Bxe8 {[%clk 0:01:08]} 31. f4 {[%clk 0:01:23]}  Kf8 {[%clk 0:01:07]} 32. Kf2 {[%clk 0:01:23]}  Ke7 {[%clk 0:01:07]} 33. Ke3 {[%clk 0:01:24]}  Kd6 {[%clk 0:01:07]} 34. g4 {[%clk 0:01:23]}  Bd7 {[%clk 0:01:07]} 35. Nf3 {[%clk 0:01:22]}  f6 {[%clk 0:01:04]} 36. Kd4 {[%clk 0:01:22]}  Bc6 {[%clk 0:01:01]} 37. Nd2 {[%clk 0:01:18]}  b5 {[%clk 0:00:55]} 38. g5 {[%clk 0:01:17]}  Ke6 {[%clk 0:00:48]} 39. a4 {[%clk 0:01:10]}  fxg5 {[%clk 0:00:44]} 40. fxg5 {[%clk 0:01:11]}  Kf5 {[%clk 0:00:44]} 41. Kc5 {[%clk 0:01:11]}  Be8 {[%clk 0:00:36]} 42. axb5 {[%clk 0:01:08]}  axb5 {[%clk 0:00:36]} 43. Nf3 {[%clk 0:01:06]}  Kf4 {[%clk 0:00:33]} 44. Nd4 {[%clk 0:01:06]}  Kxg5 {[%clk 0:00:33]} 45. Nxb5 {[%clk 0:01:07]}  Kh4 {[%clk 0:00:31]} 46. Nd6 {[%clk 0:01:07]}  Bd7 {[%clk 0:00:31]} 47. Nxc4 {[%clk 0:01:07]}  Kxh3 {[%clk 0:00:31]} 48. Ne5 {[%clk 0:01:05]}  Be6 {[%clk 0:00:30]} 49. b4 {[%clk 0:01:06]}  g5 {[%clk 0:00:30]} 50. b5 {[%clk 0:01:06]}  g4 {[%clk 0:00:29]} 51. b6 {[%clk 0:01:04]}  Bc8 {[%clk 0:00:27]} 52. Kc6 {[%clk 0:01:01]}  g3 {[%clk 0:00:26]} 53. Kc7 {[%clk 0:00:42]}  Ba6 {[%clk 0:00:23]} 54. b7 {[%clk 0:00:28]}  Bxb7 {[%clk 0:00:22]} 55. Kxb7 {[%clk 0:00:29]}  g2 {[%clk 0:00:22]} 56. Nf3 {[%clk 0:00:28]}  Kg3 {[%clk 0:00:22]} 57. Ng1 {[%clk 0:00:29]}  Kf2 {[%clk 0:00:21]} 58. Nh3+ {[%clk 0:00:30]}  Kg3 {[%clk 0:00:22]} 59. Ng1 {[%clk 0:00:30]}  Kf2 {[%clk 0:00:22]} 60. Nh3+ {[%clk 0:00:29]}  Kg3 {[%clk 0:00:22]} 61. Ng1 {[%clk 0:00:30]} 1/2-1/2


[Site "https://www.chess.com"]

[Event "Titled Tuesday Blitz January 17 Early 2023"]
[White "Hoffmann, Asa"]
[Black "Khamdamova, Afruza"]
[WhiteFideId "2001470"]
[BlackFideId "14210444"]
[WhiteElo "2185"]
[BlackElo "2162"]
[Result "1-0"]
[Round "05"]
[TimeControl "180+2"]
[Date "2023.01.17"]
[WhiteClock "0:01:58"]
[BlackClock "0:00:02"]

1. d4 {[%clk 0:02:49]}  Nf6 {[%clk 0:03:00]} 2. Bg5 {[%clk 0:02:48]}  Ne4 {[%clk 0:02:59]} 3. Bf4 {[%clk 0:02:46]}  d5 {[%clk 0:02:59]} 4. f3 {[%clk 0:02:45]}  Nf6 {[%clk 0:02:51]} 5. e4 {[%clk 0:02:45]}  dxe4 {[%clk 0:02:50]} 6. Nc3 {[%clk 0:02:44]}  exf3 {[%clk 0:02:41]} 7. Nxf3 {[%clk 0:02:43]}  e6 {[%clk 0:02:41]} 8. Bc4 {[%clk 0:02:41]}  Bd6 {[%clk 0:02:41]} 9. Qd2 {[%clk 0:02:40]}  Bxf4 {[%clk 0:02:19]} 10. Qxf4 {[%clk 0:02:39]}  O-O {[%clk 0:02:16]} 11. O-O-O {[%clk 0:02:39]}  c6 {[%clk 0:01:50]} 12. Ne5 {[%clk 0:02:36]}  b5 {[%clk 0:01:43]} 13. Bd3 {[%clk 0:02:35]}  a5 {[%clk 0:01:23]} 14. Rhf1 {[%clk 0:02:34]}  a4 {[%clk 0:01:12]} 15. a3 {[%clk 0:02:33]}  Bb7 {[%clk 0:01:03]} 16. Ne4 {[%clk 0:02:32]}  Nd5 {[%clk 0:00:33]} 17. Qg3 {[%clk 0:02:24]}  Nd7 {[%clk 0:00:23]} 18. Qh3 {[%clk 0:02:18]}  h6 {[%clk 0:00:17]} 19. Nxd7 {[%clk 0:02:11]}  Qxd7 {[%clk 0:00:17]} 20. Nc5 {[%clk 0:02:10]}  Qe7 {[%clk 0:00:15]} 21. g4 {[%clk 0:02:08]}  Rab8 {[%clk 0:00:12]} 22. Kb1 {[%clk 0:02:06]}  Rfd8 {[%clk 0:00:10]} 23. Qg3 {[%clk 0:02:03]}  Qg5 {[%clk 0:00:06]} 24. h4 {[%clk 0:02:02]}  Qe3 {[%clk 0:00:06]} 25. Rf3 {[%clk 0:01:59]}  Qxd4 {[%clk 0:00:01]} 26. Bh7+ {[%clk 0:01:58]}  Kxh7 {[%clk 0:00:02]} 27. Rxd4 {[%clk 0:01:58]} 1-0


[Site "https://www.chess.com"]